[Event "10th Sharjah Cup Women 2020"]
[Site "Sharjah"]
[Date "2020.01.04"]
[Round "1.19"]
[White "khezrian, Neda"]
[Black "Suleimanova, Ava"]
[Result "0-1"]
[ECO "C42"]
[WhiteElo "1075"]
[BlackElo "2213"]
[Annotator "ChessBase"]
[PlyCount "106"]
[EventDate "2020.01.04"]
[EventType "swiss"]
[EventCountry "UAE"]
[SourceTitle "playchess.com"]
[Source "ChessBase"]
[SourceQuality "1"]
[TimeControl "5400+30"]

1. e4 {[%emt 0:00:00]} Nf6 {[%emt 0:00:00]} 2. Nc3 {[%emt 0:00:25]} e5 {[%emt 0:00:00]} 3. Nf3 {[%emt 0:01:43]} Bb4 {[%emt 0:01:05]} 4. d3 {[%emt 0:03:36]} d5 {[%emt 0:01:04]} 5. Bd2 {[%emt 0:06:43]} d4 {[%emt 0:01:48]} 6. Nb1 {[%emt 0:02:06]} Qe7 {[%emt 0:01:32]} 7. Be2 {[%emt 0:08:56]} O-O {[%emt 0:01:18]} 8. O-O {[%emt 0:00:41]} Bxd2 {[%emt 0:00:58]} 9. Nbxd2 {[%emt 0:00:17]} Nc6 {[%emt 0:02:23]} 10. c3 {[%emt 0:10:06]} dxc3 {[%emt 0:00:44]} 11. bxc3 {[%emt 0:00:21]} Rd8 {[%emt 0:00:13]} 12. Rb1 {[%emt 0:04:11]} b6 {[%emt 0:01:22]} 13. Qc2 {[%emt 0:08:35]} a5 {[%emt 0:03:10]} 14. Rfd1 {[%emt 0:06:31]} Ba6 {[%emt 0:03:26]} 15. Nf1 {[%emt 0:04:08]} Nh5 {[%emt 0:05:43]} 16. Ne3 {[%emt 0:01:51]} Nf4 {[%emt 0:00:53]} 17. Ng4 {[%emt 0:01:56]} Rd6 {[%emt 0:02:09]} 18. c4 {[%emt 0:03:00]} Rg6 {[%emt 0:02:23]} 19. h3 {[%emt 0:01:52]} h5 {[%emt 0:00:21]} 20. Ne3 {[%emt 0:01:00]} Nd4 {[%emt 0:03:03]} 21. Nxd4 {[%emt 0:01:03]} exd4 {[%emt 0:00:16]} 22. Nd5 {[%emt 0:01:07]} Rxg2+ {[%emt 0:13:15]} 23. Kf1 {[%emt 0:00:55]} Qg5 {[%emt 0:06:07]} 24. Ke1 {[%emt 0:01:12]} Rg1+ {[%emt 0:04:00]} 25. Bf1 {[%emt 0:01:10]} Qg2 {[%emt 0:01:32]} 26. Kd2 {[%emt 0:01:19]} Qxf2+ {[%emt 0:00:34]} 27. Kc1 {[%emt 0:00:12]} Rxf1 {[%emt 0:00:31]} 28. Qxf2 {[%emt 0:01:37]} Rxf2 {[%emt 0:00:24]} 29. Nxf4 {[%emt 0:02:37]} Rxf4 {[%emt 0:00:12]} 30. Rb2 {[%emt 0:05:49]} Bc8 {[%emt 0:00:41]} 31. Rh2 {[%emt 0:00:29]} Rf3 {[%emt 0:00:11]} 32. Kc2 {[%emt 0:01:17]} Rxh3 {[%emt 0:00:31]} 33. Rf2 {[%emt 0:00:34]} Be6 {[%emt 0:00:25]} 34. Rg1 {[%emt 0:01:44]} a4 {[%emt 0:01:21]} 35. Rg5 {[%emt 0:01:15]} Ra5 {[%emt 0:00:38]} 36. Rgg2 {[%emt 0:00:51]} b5 {[%emt 0:00:11]} 37. c5 {[%emt 0:00:42]} b4 {[%emt 0:00:07]} 38. Kb1 {[%emt 0:00:44]} Rxd3 {[%emt 0:00:14]} 39. Rd2 {[%emt 0:01:05]} Rxd2 {[%emt 0:00:55]} 40. Rxd2 {[%emt 0:00:07]} h4 {[%emt 0:00:32]} 41. Rxd4 {[%emt 0:00:38]} h3 {[%emt 0:00:13]} 42. Rd2 {[%emt 0:00:31]} b3 {[%emt 0:00:06]} 43. a3 {[%emt 0:00:22]} Rxc5 {[%emt 0:00:11]} 44. Rh2 {[%emt 0:02:05]} Rg5 {[%emt 0:00:22]} 45. Rd2 {[%emt 0:00:55]} Rg1+ {[%emt 0:00:11]} 46. Kb2 {[%emt 0:00:19]} Rg2 {[%emt 0:00:09]} 47. Rxg2 {[%emt 0:00:12]} hxg2 {[%emt 0:00:04]} 48. e5 {[%emt 0:00:15]} g1=Q {[%emt 0:00:19]} 49. Kc3 {[%emt 0:00:13]} Qc1+ {[%emt 0:00:21]} 50. Kb4 {[%emt 0:00:12]} b2 {[%emt 0:00:07]} 51. Kxa4 {[%emt 0:00:13]} b1=Q {[%emt 0:00:33]} 52. Ka5 {[%emt 0:00:09]} Qb6+ {[%emt 0:00:07]} 53. Ka4 {[%emt 0:00:09]} Qc4# {[%emt 0:00:05]} 0-1

[Event "10th Sharjah Cup Women 2020"]
[Site "Sharjah"]
[Date "2020.01.04"]
[Round "1.20"]
[White "Kiolbasa, Oliwia"]
[Black "Al-Hammadi, Manal Hussein"]
[Result "1-0"]
[ECO "D30"]
[WhiteElo "2196"]
[BlackElo "1071"]
[Annotator "ChessBase"]
[PlyCount "119"]
[EventDate "2020.01.04"]
[EventType "swiss"]
[EventCountry "UAE"]
[SourceTitle "playchess.com"]
[Source "ChessBase"]
[SourceQuality "1"]
[TimeControl "5400+30"]

1. d4 {[%emt 0:00:00]} d5 {[%emt 0:00:00]} 2. c4 {[%emt 0:00:00]} e6 {[%emt 0:00:00]} 3. Nf3 {[%emt 0:00:00]} Nc6 {[%emt 0:01:53]} 4. g3 {[%emt 0:01:28]} g6 {[%emt 0:03:25]} 5. Bg2 {[%emt 0:01:45]} Bg7 {[%emt 0:05:56]} 6. O-O {[%emt 0:05:18]} Nf6 {[%emt 0:01:19]} 7. Nc3 {[%emt 0:06:02]} Ne7 {[%emt 0:03:09]} 8. Ne5 {[%emt 0:02:56]} O-O {[%emt 0:04:33]} 9. c5 {[%emt 0:08:29]} c6 {[%emt 0:02:19]} 10. b4 {[%emt 0:00:51]} a6 {[%emt 0:02:33]} 11. a4 {[%emt 0:00:09]} Bd7 {[%emt 0:01:00]} 12. Bb2 {[%emt 0:04:05]} b6 {[%emt 0:03:50]} 13. cxb6 {[%emt 0:02:03]} Qxb6 {[%emt 0:00:29]} 14. a5 {[%emt 0:00:13]} Qc7 {[%emt 0:04:32]} 15. Na4 {[%emt 0:00:10]} Bc8 {[%emt 0:04:26]} 16. Nb6 {[%emt 0:06:54]} Rb8 {[%emt 0:01:38]} 17. Qc2 {[%emt 0:00:07]} Nd7 {[%emt 0:01:26]} 18. Nexd7 {[%emt 0:06:17]} Bxd7 {[%emt 0:00:18]} 19. Rfc1 {[%emt 0:00:08]} Nc8 {[%emt 0:03:53]} 20. Nxd7 {[%emt 0:00:32]} Qxd7 {[%emt 0:00:11]} 21. Qxc6 {[%emt 0:00:07]} Qxc6 {[%emt 0:02:10]} 22. Rxc6 {[%emt 0:00:09]} Ne7 {[%emt 0:01:16]} 23. Rb6 {[%emt 0:08:45]} Rxb6 {[%emt 0:03:51]} 24. axb6 {[%emt 0:00:01]} Rb8 {[%emt 0:00:12]} 25. Rxa6 {[%emt 0:01:27]} Nc8 {[%emt 0:00:34]} 26. b7 {[%emt 0:08:30]} Rxb7 {[%emt 0:01:07]} 27. Ra8 {[%emt 0:00:06]} Rc7 {[%emt 0:00:12]} 28. e4 {[%emt 0:00:07]} dxe4 {[%emt 0:01:13]} 29. Bxe4 {[%emt 0:00:39]} h5 {[%emt 0:02:03]} 30. b5 {[%emt 0:01:49]} Kh7 {[%emt 0:00:56]} 31. Bc6 {[%emt 0:00:24]} Nd6 {[%emt 0:03:00]} 32. Ra4 {[%emt 0:14:05]} Rc8 {[%emt 0:01:42]} 33. Ba3 {[%emt 0:03:09]} Bf8 {[%emt 0:01:34]} 34. Ra7 {[%emt 0:02:17]} Kg7 {[%emt 0:01:04]} 35. d5 {[%emt 0:04:13]} exd5 {[%emt 0:00:48]} 36. Bxd5 {[%emt 0:00:15]} Kh6 {[%emt 0:02:01]} 37. b6 Rb8 {[%emt 0:00:50]} 38. b7 {[%emt 0:02:34]} Nxb7 {[%emt 0:00:46]} 39. Bxf8+ {[%emt 0:00:07]} Rxf8 {[%emt 0:00:07]} 40. Rxb7 {[%emt 0:00:06]} g5 {[%emt 0:00:19]} 41. Rxf7 {[%emt 0:00:09]} Rxf7 {[%emt 0:00:16]} 42. Bxf7 {[%emt 0:00:04]} h4 {[%emt 0:00:20]} 43. gxh4 {[%emt 0:00:31]} gxh4 {[%emt 0:00:10]} 44. Kg2 {[%emt 0:00:02]} Kg5 {[%emt 0:00:09]} 45. Kh3 {[%emt 0:00:05]} Kf6 {[%emt 0:00:19]} 46. Bd5 {[%emt 0:00:04]} Kg5 {[%emt 0:00:18]} 47. Bc6 {[%emt 0:00:13]} Kh5 {[%emt 0:00:13]} 48. f4 {[%emt 0:00:04]} Kg6 {[%emt 0:00:11]} 49. Kxh4 {[%emt 0:00:07]} Kf6 {[%emt 0:00:03]} 50. Kg4 {[%emt 0:00:05]} Kf7 {[%emt 0:00:15]} 51. Kf5 {[%emt 0:00:11]} Kf8 {[%emt 0:00:08]} 52. Kf6 {[%emt 0:00:04]} Kg8 {[%emt 0:00:06]} 53. Ke7 {[%emt 0:00:04]} Kg7 {[%emt 0:00:23]} 54. f5 {[%emt 0:00:03]} Kg8 {[%emt 0:00:06]} 55. f6 {[%emt 0:00:03]} Kh7 {[%emt 0:00:23]} 56. f7 {[%emt 0:00:05]} Kg6 {[%emt 0:00:15]} 57. f8=Q {[%emt 0:00:07]} Kg5 {[%emt 0:00:12]} 58. Qf6+ {[%emt 0:00:59]} Kg4 {[%emt 0:00:08]} 59. Bf3+ {[%emt 0:00:09]} Kh3 {[%emt 0:00:23]} 60. Qh6# {[%emt 0:00:05]} 1-0

[Event "10th Sharjah Cup Women 2020"]
[Site "Sharjah"]
[Date "2020.01.04"]
[Round "1.21"]
[White "Alsabbagh Eman"]
[Black "Drljevic, Ljilja"]
[Result "0-1"]
[ECO "B08"]
[WhiteElo "1053"]
[BlackElo "2193"]
[Annotator "NA"]
[PlyCount "94"]
[EventDate "2020.01.04"]
[EventType "swiss"]
[EventCountry "UAE"]
[SourceTitle "playchess.com"]
[Source "ChessBase"]
[SourceQuality "1"]
[TimeControl "5400+30"]

1. e4 {[%emt 0:00:00]} g6 {[%emt 0:00:00]} 2. d4 {[%emt 0:02:08]} Bg7 {[%emt 0:00:00]} 3. Nf3 {[%emt 0:00:56]} d6 {[%emt 0:00:33]} 4. Nc3 {[%emt 0:01:54]} Nf6 {[%emt 0:00:51]} 5. Bd3 {[%emt 0:01:33]} Nc6 {[%emt 0:00:55]} 6. h3 {[%emt 0:03:43]} O-O {[%emt 0:01:12]} 7. Be3 {[%emt 0:00:45]} e5 {[%emt 0:01:48]} 8. dxe5 {[%emt 0:02:35]} dxe5 {[%emt 0:01:15]} 9. Qd2 {[%emt 0:01:38]} Re8 {[%emt 0:11:34]} 10. a3 {[%emt 0:03:39]} Nd4 {[%emt 0:00:38]} 11. Bh6 {[%emt 0:13:23]} Nh5 {[%emt 0:12:48]} 12. O-O-O {[%emt 0:09:38]} c5 {[%emt 0:00:56]} 13. Bxg7 {[%emt 0:11:44]} Kxg7 {[%emt 0:01:29]} 14. Ne2 {[%emt 0:01:35]} Qc7 {[%emt 0:01:38]} 15. Bc4 {[%emt 0:05:09]} Be6 {[%emt 0:00:55]} 16. Bxe6 {[%emt 0:03:15]} Rxe6 {[%emt 0:00:33]} 17. Ng5 {[%emt 0:03:54]} Rf6 {[%emt 0:00:38]} 18. Rhf1 h6 {[%emt 0:10:41]} 19. Nf3 {[%emt 0:06:47]} Nxf3 {[%emt 0:05:09]} 20. gxf3 {[%emt 0:01:15]} Rxf3 {[%emt 0:00:05]} 21. Ng1 {[%emt 0:02:52]} Rf6 {[%emt 0:00:26]} 22. Ne2 {[%emt 0:01:45]} b5 {[%emt 0:14:11]} 23. Nc3 {[%emt 0:02:26]} Rf3 {[%emt 0:05:25]} 24. Nxb5 {[%emt 0:02:02]} Qb6 {[%emt 0:03:54]} 25. Qd5 {[%emt 0:01:46]} Re8 {[%emt 0:03:57]} 26. Nd6 {[%emt 0:01:45]} Re6 {[%emt 0:01:09]} 27. Nc4 {[%emt 0:00:58]} Qc7 {[%emt 0:04:26]} 28. Qd7 {[%emt 0:03:24]} Qxd7 {[%emt 0:01:51]} 29. Rxd7 {[%emt 0:00:13]} Nf6 {[%emt 0:01:28]} 30. Rxa7 {[%emt 0:00:58]} Nxe4 {[%emt 0:00:58]} 31. Re1 {[%emt 0:00:34]} Rf4 {[%emt 0:00:49]} 32. f3 {[%emt 0:02:11]} Ng5 {[%emt 0:02:26]} 33. Nxe5 {[%emt 0:02:15]} c4 {[%emt 0:00:52]} 34. Kd2 {[%emt 0:01:42]} Rxf3 {[%emt 0:04:28]} 35. Nxc4 {[%emt 0:00:39]} Rf2+ {[%emt 0:01:15]} 36. Kd1 {[%emt 0:00:39]} Rxe1+ {[%emt 0:02:24]} 37. Kxe1 {[%emt 0:00:10]} Rxc2 {[%emt 0:00:07]} 38. b3 {[%emt 0:01:12]} Nxh3 {[%emt 0:00:16]} 39. Ne5 {[%emt 0:01:10]} Ng5 {[%emt 0:00:41]} 40. b4 {[%emt 0:00:29]} h5 {[%emt 0:00:17]} 41. a4 {[%emt 0:00:46]} Kf6 {[%emt 0:01:30]} 42. Nd7+ {[%emt 0:00:40]} Kf5 {[%emt 0:00:27]} 43. b5 {[%emt 0:00:24]} h4 {[%emt 0:01:25]} 44. Kf1 {[%emt 0:00:44]} h3 {[%emt 0:00:20]} 45. Kg1 {[%emt 0:00:09]} Nf3+ {[%emt 0:00:17]} 46. Kf1 {[%emt 0:01:16]} h2 {[%emt 0:00:10]} 47. b6 {[%emt 0:00:22]} h1=R# {[%emt 0:00:14]} 0-1

[Event "10th Sharjah Cup Women 2020"]
[Site "Sharjah"]
[Date "2020.01.04"]
[Round "1.22"]
[White "Pujari, Rucha"]
[Black "Mira, Husain Al Hammadi"]
[Result "1-0"]
[ECO "D10"]
[WhiteElo "2187"]
[BlackElo "1048"]
[Annotator "ChessBase"]
[PlyCount "59"]
[EventDate "2020.01.04"]
[EventType "swiss"]
[EventCountry "UAE"]
[SourceTitle "playchess.com"]
[Source "ChessBase"]
[SourceQuality "1"]
[TimeControl "5400+30"]

1. d4 {[%emt 0:00:02]} d5 {[%emt 0:00:00]} 2. c4 {[%emt 0:00:13]} c6 {[%emt 0:00:31]} 3. cxd5 {[%emt 0:00:40]} cxd5 {[%emt 0:01:51]} 4. Nc3 {[%emt 0:00:07]} Nf6 {[%emt 0:00:56]} 5. Bf4 {[%emt 0:00:04]} a6 {[%emt 0:01:50]} 6. e3 {[%emt 0:00:11]} Bf5 {[%emt 0:03:02]} 7. Qb3 {[%emt 0:00:45]} b5 {[%emt 0:02:00]} 8. a4 {[%emt 0:05:19]} Qa5 {[%emt 0:03:40]} 9. Rc1 {[%emt 0:02:21]} Bd7 {[%emt 0:05:23]} 10. axb5 {[%emt 0:03:29]} axb5 {[%emt 0:04:13]} 11. Bxb5 {[%emt 0:00:18]} e6 {[%emt 0:02:01]} 12. Nge2 {[%emt 0:06:30]} Bxb5 {[%emt 0:02:24]} 13. Qxb5+ {[%emt 0:01:07]} Qxb5 {[%emt 0:00:47]} 14. Nxb5 {[%emt 0:00:02]} Na6 {[%emt 0:00:52]} 15. O-O {[%emt 0:00:53]} Be7 {[%emt 0:06:16]} 16. Nc7+ {[%emt 0:04:18]} Nxc7 {[%emt 0:00:30]} 17. Rxc7 {[%emt 0:00:03]} Bd8 {[%emt 0:00:45]} 18. Rb7 {[%emt 0:00:33]} O-O {[%emt 0:00:35]} 19. f3 Ba5 {[%emt 0:01:19]} 20. b4 {[%emt 0:05:25]} Bd8 {[%emt 0:01:40]} 21. Rb1 {[%emt 0:02:56]} Re8 {[%emt 0:02:36]} 22. Bd6 {[%emt 0:01:50]} Ra6 {[%emt 0:01:13]} 23. Bc5 {[%emt 0:00:07]} e5 {[%emt 0:00:51]} 24. dxe5 {[%emt 0:02:12]} Rxe5 {[%emt 0:00:19]} 25. Nf4 {[%emt 0:03:36]} h6 {[%emt 0:02:25]} 26. b5 {[%emt 0:00:50]} Ra2 {[%emt 0:00:45]} 27. b6 {[%emt 0:00:53]} Kh7 {[%emt 0:02:12]} 28. Rxf7 Rg5 {[%emt 0:00:29]} 29. b7 {[%emt 0:02:51]} Nh5 {[%emt 0:00:30]} 30. b8=Q {[%emt 0:01:21]} 1-0

[Event "10th Sharjah Cup Women 2020"]
[Site "Sharjah"]
[Date "2020.01.04"]
[Round "1.23"]
[White "Mera Abdulaziz Aidarous"]
[Black "Babayan, Armine"]
[Result "0-1"]
[ECO "C02"]
[WhiteElo "1042"]
[BlackElo "2186"]
[Annotator "ChessBase"]
[PlyCount "54"]
[EventDate "2020.01.04"]
[EventType "swiss"]
[EventCountry "UAE"]
[SourceTitle "playchess.com"]
[Source "ChessBase"]
[SourceQuality "1"]
[TimeControl "5400+30"]

1. e4 {[%emt 0:00:00]} c5 {[%emt 0:00:00]} 2. Nf3 {[%emt 0:00:00]} Nc6 {[%emt 0:00:00]} 3. c3 {[%emt 0:00:00]} e6 {[%emt 0:00:00]} 4. d4 {[%emt 0:00:12]} d5 {[%emt 0:00:00]} 5. e5 {[%emt 0:00:49]} Nge7 {[%emt 0:00:08]} 6. Be2 {[%emt 0:00:44]} Ng6 {[%emt 0:00:21]} 7. Be3 {[%emt 0:01:04]} c4 {[%emt 0:00:44]} 8. Nbd2 {[%emt 0:00:15]} Rb8 {[%emt 0:00:40]} 9. O-O {[%emt 0:00:31]} Be7 10. Re1 {[%emt 0:00:33]} O-O {[%emt 0:01:06]} 11. Bf1 {[%emt 0:02:37]} b5 {[%emt 0:00:25]} 12. Rb1 {[%emt 0:01:19]} b4 13. g3 {[%emt 0:01:10]} Bd7 {[%emt 0:02:29]} 14. Bg2 {[%emt 0:02:24]} Qa5 {[%emt 0:00:16]} 15. Qc1 {[%emt 0:00:56]} bxc3 {[%emt 0:01:12]} 16. Qxc3 {[%emt 0:01:03]} Qxa2 {[%emt 0:00:34]} 17. Nf1 {[%emt 0:05:45]} Bb4 {[%emt 0:02:32]} 18. Qc2 {[%emt 0:02:14]} Bxe1 {[%emt 0:00:12]} 19. Nxe1 {[%emt 0:00:15]} Rb6 {[%emt 0:00:50]} 20. Nd2 {[%emt 0:04:32]} Rfb8 {[%emt 0:00:19]} 21. b3 {[%emt 0:04:01]} Qxc2 {[%emt 0:02:03]} 22. Nxc2 {[%emt 0:00:15]} c3 {[%emt 0:01:15]} 23. Nf3 {[%emt 0:00:47]} Rxb3 {[%emt 0:00:08]} 24. Rc1 {[%emt 0:01:09]} Rb1 {[%emt 0:00:09]} 25. Rxb1 {[%emt 0:00:18]} Rxb1+ {[%emt 0:00:04]} 26. Bf1 {[%emt 0:00:12]} Nb4 {[%emt 0:00:26]} 27. Nxb4 {[%emt 0:00:43]} Bb5 {[%emt 0:00:55]} 0-1

[Event "10th Sharjah Cup Women 2020"]
[Site "Sharjah"]
[Date "2020.01.05"]
[Round "2.2"]
[White "Dhyana Patel"]
[Black "Socko, Monika"]
[Result "1/2-1/2"]
[ECO "C68"]
[WhiteElo "1969"]
[BlackElo "2413"]
[Annotator "ChessBase"]
[PlyCount "82"]
[EventDate "2020.01.04"]
[EventType "swiss"]
[EventCountry "UAE"]
[SourceTitle "playchess.com"]
[Source "ChessBase"]
[SourceQuality "1"]
[TimeControl "5400+30"]

1. e4 {[%emt 0:00:00]} e5 {[%emt 0:00:00]} 2. Nf3 {[%emt 0:00:00]} Nc6 {[%emt 0:00:00]} 3. Bb5 {[%emt 0:00:08]} a6 {[%emt 0:00:00]} 4. Bxc6 {[%emt 0:00:12]} dxc6 {[%emt 0:00:00]} 5. O-O {[%emt 0:00:16]} Bd6 {[%emt 0:00:02]} 6. d4 {[%emt 0:00:54]} exd4 {[%emt 0:00:04]} 7. Qxd4 {[%emt 0:00:24]} f6 {[%emt 0:00:16]} 8. b3 {[%emt 0:01:59]} Be6 {[%emt 0:06:29]} 9. Bb2 {[%emt 0:01:36]} Qe7 {[%emt 0:05:12]} 10. e5 {[%emt 0:04:12]} Bc5 {[%emt 0:00:19]} 11. Qh4 {[%emt 0:02:49]} O-O-O {[%emt 0:03:08]} 12. Nbd2 {[%emt 0:03:41]} f5 {[%emt 0:02:48]} 13. Qxe7 {[%emt 0:02:24]} Nxe7 {[%emt 0:01:22]} 14. Rad1 {[%emt 0:01:35]} h6 {[%emt 0:00:27]} 15. Nb1 {[%emt 0:03:43]} Rxd1 {[%emt 0:04:36]} 16. Rxd1 {[%emt 0:00:02]} Rd8 {[%emt 0:00:05]} 17. Rxd8+ {[%emt 0:01:18]} Kxd8 {[%emt 0:00:01]} 18. Bd4 {[%emt 0:02:11]} Bxd4 {[%emt 0:00:10]} 19. Nxd4 {[%emt 0:00:02]} Kd7 {[%emt 0:00:03]} 20. Nc3 {[%emt 0:03:17]} c5 {[%emt 0:05:03]} 21. Nxe6 {[%emt 0:03:10]} Kxe6 {[%emt 0:00:02]} 22. f4 {[%emt 0:00:08]} Nc6 {[%emt 0:06:57]} 23. Ne2 {[%emt 0:01:24]} Nb4 {[%emt 0:04:52]} 24. c3 {[%emt 0:00:11]} Nxa2 {[%emt 0:02:25]} 25. Kf2 {[%emt 0:00:12]} b5 {[%emt 0:37:56]} 26. Ke3 {[%emt 0:00:16]} c4 {[%emt 0:06:06]} 27. b4 {[%emt 0:00:32]} Kd5 {[%emt 0:07:08]} 28. Kd2 {[%emt 0:00:53]} c5 {[%emt 0:00:02]} 29. bxc5 {[%emt 0:00:33]} b4 {[%emt 0:04:03]} 30. c6 {[%emt 0:01:34]} Kxc6 {[%emt 0:00:03]} 31. cxb4 {[%emt 0:00:19]} Nxb4 {[%emt 0:00:03]} 32. Nd4+ {[%emt 0:00:39]} Kd5 {[%emt 0:00:43]} 33. Nxf5 {[%emt 0:01:11]} g5 {[%emt 0:01:46]} 34. Ne3+ {[%emt 0:02:48]} Ke6 {[%emt 0:01:24]} 35. fxg5 {[%emt 0:00:23]} hxg5 {[%emt 0:00:13]} 36. Nxc4 {[%emt 0:03:01]} Nc6 {[%emt 0:00:03]} 37. Kc3 {[%emt 0:01:05]} Nxe5 {[%emt 0:00:03]} 38. Ne3 {[%emt 0:01:21]} Ng6 {[%emt 0:01:40]} 39. g3 {[%emt 0:00:35]} Ke5 {[%emt 0:00:50]} 40. h4 {[%emt 0:00:31]} gxh4 {[%emt 0:00:10]} 41. gxh4 {[%emt 0:00:05]} Nxh4 {[%emt 0:00:04]} 1/2-1/2

[Event "10th Sharjah Cup Women 2020"]
[Site "Sharjah"]
[Date "2020.01.05"]
[Round "2.4"]
[White "Shanya Mishra"]
[Black "Assaubayeva, Bibisara"]
[Result "0-1"]
[ECO "D85"]
[WhiteElo "1907"]
[BlackElo "2375"]
[Annotator "ChessBase"]
[PlyCount "64"]
[EventDate "2020.01.04"]
[EventType "swiss"]
[EventCountry "UAE"]
[SourceTitle "playchess.com"]
[Source "ChessBase"]
[SourceQuality "1"]
[TimeControl "5400+30"]

1. d4 {[%emt 0:00:00]} Nf6 {[%emt 0:00:00]} 2. c4 {[%emt 0:00:05]} g6 {[%emt 0:00:00]} 3. Nc3 {[%emt 0:00:22]} d5 {[%emt 0:00:00]} 4. cxd5 {[%emt 0:03:33]} Nxd5 {[%emt 0:00:03]} 5. Nf3 {[%emt 0:00:41]} Bg7 {[%emt 0:00:14]} 6. g3 {[%emt 0:00:35]} c5 {[%emt 0:02:19]} 7. Qb3 {[%emt 0:08:23]} Nxc3 {[%emt 0:01:38]} 8. bxc3 {[%emt 0:00:09]} cxd4 {[%emt 0:04:08]} 9. cxd4 {[%emt 0:06:00]} Nc6 {[%emt 0:01:07]} 10. Bb2 {[%emt 0:02:49]} Be6 {[%emt 0:03:35]} 11. Qa4 {[%emt 0:04:34]} Bd5 {[%emt 0:01:04]} 12. Bg2 {[%emt 0:04:12]} b5 {[%emt 0:00:20]} 13. Qc2 {[%emt 0:02:28]} Rc8 {[%emt 0:02:41]} 14. Rc1 {[%emt 0:36:04]} O-O {[%emt 0:01:29]} 15. Qd2 {[%emt 0:02:40]} Bxa2 {[%emt 0:07:29]} 16. O-O {[%emt 0:02:33]} Bd5 {[%emt 0:00:20]} 17. e3 {[%emt 0:06:33]} Qb6 {[%emt 0:05:21]} 18. Rc5 {[%emt 0:00:38]} Rfd8 {[%emt 0:03:45]} 19. Rfc1 {[%emt 0:01:54]} Bc4 {[%emt 0:02:26]} 20. Qe1 {[%emt 0:04:41]} Qxc5 {[%emt 0:12:29]} 21. dxc5 {[%emt 0:00:16]} Bxb2 {[%emt 0:00:02]} 22. Rb1 {[%emt 0:00:40]} Bf6 {[%emt 0:00:55]} 23. Bf1 {[%emt 0:01:02]} Bxf1 {[%emt 0:00:37]} 24. Kxf1 {[%emt 0:00:57]} b4 {[%emt 0:00:27]} 25. Rd1 {[%emt 0:00:58]} b3 {[%emt 0:00:56]} 26. e4 {[%emt 0:06:22]} Rxd1 {[%emt 0:01:09]} 27. Qxd1 {[%emt 0:00:06]} b2 {[%emt 0:00:07]} 28. Ke2 {[%emt 0:02:02]} Rd8 {[%emt 0:00:20]} 29. Qb1 {[%emt 0:00:06]} Bc3 {[%emt 0:00:47]} 30. Ng5 {[%emt 0:01:18]} h6 {[%emt 0:01:07]} 31. Nh3 {[%emt 0:01:03]} Nd4+ {[%emt 0:00:59]} 32. Ke3 {[%emt 0:01:26]} Nb3 {[%emt 0:01:32] Kd4} 0-1

[Event "10th Sharjah Cup Women 2020"]
[Site "Sharjah"]
[Date "2020.01.05"]
[Round "2.5"]
[White "Gong, Qianyun"]
[Black "Kyrkjebo, Marte B."]
[Result "1-0"]
[ECO "A05"]
[WhiteElo "2371"]
[BlackElo "1880"]
[Annotator "RC"]
[PlyCount "103"]
[EventDate "2020.01.04"]
[EventType "swiss"]
[EventCountry "UAE"]
[SourceTitle "playchess.com"]
[Source "ChessBase"]
[SourceQuality "1"]
[TimeControl "5400+30"]

1. Nf3 {[%emt 0:00:00]} Nf6 {[%emt 0:00:00]} 2. d4 {[%emt 0:00:00]} e6 {[%emt 0:00:00]} 3. Bf4 {[%emt 0:00:00]} c5 {[%emt 0:00:07]} 4. e3 {[%emt 0:00:00]} Be7 {[%emt 0:00:12]} 5. h3 {[%emt 0:00:25]} b6 {[%emt 0:00:37]} 6. Nc3 {[%emt 0:04:01]} O-O {[%emt 0:16:45]} 7. d5 {[%emt 0:06:04]} d6 {[%emt 0:08:03]} 8. Bh2 {[%emt 0:03:51]} e5 {[%emt 0:03:31]} 9. e4 {[%emt 0:01:40]} Nbd7 {[%emt 0:07:14]} 10. Be2 {[%emt 0:03:48]} a6 {[%emt 0:09:48]} 11. a4 {[%emt 0:00:33]} Rb8 {[%emt 0:01:27]} 12. Nd2 {[%emt 0:01:34]} Ne8 {[%emt 0:02:24]} 13. O-O {[%emt 0:00:19]} Nc7 {[%emt 0:03:57]} 14. Nc4 {[%emt 0:00:24]} Bb7 {[%emt 0:08:34]} 15. f4 {[%emt 0:09:32]} f6 {[%emt 0:04:44]} 16. Ne3 {[%emt 0:08:10]} exf4 {[%emt 0:04:18]} 17. Bxf4 {[%emt 0:00:08]} Ne5 {[%emt 0:00:45]} 18. Nf5 {[%emt 0:00:59]} Bc8 {[%emt 0:02:07]} 19. Qe1 {[%emt 0:04:45]} Bxf5 {[%emt 0:05:27]} 20. exf5 {[%emt 0:00:03]} Qd7 {[%emt 0:01:14]} 21. Bg3 {[%emt 0:05:42]} Rfe8 {[%emt 0:05:13]} 22. Bh5 {[%emt 0:02:21]} Nf7 {[%emt 0:01:42]} 23. Bxf7+ {[%emt 0:02:09]} Kxf7 {[%emt 0:00:16]} 24. Qe6+ {[%emt 0:00:09]} Qxe6 {[%emt 0:01:07]} 25. dxe6+ {[%emt 0:00:02]} Kf8 {[%emt 0:00:54]} 26. Ne4 {[%emt 0:00:22]} Red8 {[%emt 0:01:26]} 27. a5 {[%emt 0:00:13]} Ne8 {[%emt 0:02:07]} 28. axb6 {[%emt 0:00:51]} Rxb6 {[%emt 0:00:12]} 29. b3 {[%emt 0:00:04]} d5 {[%emt 0:01:25]} 30. Nc3 {[%emt 0:00:35]} g6 {[%emt 0:01:36]} 31. Rad1 {[%emt 0:09:27]} d4 {[%emt 0:02:40]} 32. Ne4 {[%emt 0:13:27]} gxf5 {[%emt 0:00:33]} 33. Rxf5 {[%emt 0:00:01]} Rxe6 {[%emt 0:00:59]} 34. Nxc5 {[%emt 0:00:38]} Rc6 {[%emt 0:01:24]} 35. b4 {[%emt 0:00:44]} Bxc5 {[%emt 0:01:45]} 36. bxc5 {[%emt 0:00:01]} Rdc8 {[%emt 0:00:29]} 37. Be1 {[%emt 0:01:15]} Kf7 {[%emt 0:01:06]} 38. Bb4 {[%emt 0:00:58]} a5 {[%emt 0:00:47]} 39. Ba3 {[%emt 0:00:16]} Nc7 {[%emt 0:01:35]} 40. Rb1 {[%emt 0:02:16]} Ne6 {[%emt 0:00:21]} 41. Rb5 {[%emt 0:00:26]} Ra8 {[%emt 0:00:33]} 42. Rd5 {[%emt 0:00:20]} a4 {[%emt 0:00:47]} 43. Rb7+ {[%emt 0:01:12]} Kg6 {[%emt 0:00:21]} 44. Rd6 {[%emt 0:00:34]} Rac8 {[%emt 0:00:28]} 45. Rb6 {[%emt 0:02:42]} Rxd6 {[%emt 0:00:11]} 46. cxd6 {[%emt 0:00:02]} Rxc2 {[%emt 0:01:14]} 47. d7 {[%emt 0:00:12]} d3 {[%emt 0:00:24]} 48. Rxe6 {[%emt 0:00:10]} d2 {[%emt 0:00:23]} 49. d8=Q {[%emt 0:00:09]} Rc1+ {[%emt 0:00:28]} 50. Kh2 {[%emt 0:00:05]} d1=Q {[%emt 0:00:17]} 51. Qxf6+ {[%emt 0:00:08]} Kh5 {[%emt 0:00:15]} 52. Re5# {[%emt 0:00:06]} 1-0